lending/lending_fUSD_20240219
["ID","MTS","AMOUNT","RATE_DAILY","PERIOD"]
[314457557,1708367448104,-151.0,0.000411,14]
[314457559,1708367448114,-151.0,0.000411,14]
[314457561,1708367448123,-167.941296,0.000411,14]
[314457563,1708367448132,-167.941296,0.000411,14]
[314457565,1708367448141,-171.234104,0.000411,2]
[314457567,1708367448150,-151.0,0.000411,14]
[314457569,1708367448159,-303.481413,0.000411,14]
[314457571,1708367448168,-303.481413,0.000411,14]
[314457573,1708367448177,-586.646416,0.000411,14]
[314457575,1708367448186,-586.646416,0.000411,14]
[314457577,1708367448195,-357.651493,0.000411,14]
[314457579,1708367448204,-301.483431,0.000411,14]
[314457581,1708367448214,-357.651493,0.000411,14]
[314457583,1708367448223,-301.483431,0.000411,14]
[314457585,1708367448234,-197.637474,0.000411,14]
[314457587,1708367448243,-151.0,0.000411,14]
[314457589,1708367448253,-197.637474,0.000411,14]
[314457591,1708367448262,-151.0,0.000411,14]
[314457593,1708367448271,-151.0,0.000411,14]
[314457595,1708367448283,-151.0,0.000411,14]
[314457597,1708367448292,-995.33519,0.000411,14]
[314457599,1708367448302,-995.33519,0.000411,14]
[314457601,1708367448311,-151.0,0.000411,14]
[314457603,1708367448320,-151.0,0.000411,14]
[314457605,1708367448329,-151.0,0.000411,14]
[314457607,1708367448339,-414.585662,0.000411,14]
[314457609,1708367448349,-414.585662,0.000411,14]
[314457611,1708367448358,-226.709006,0.000411,14]
[314457613,1708367448368,-151.0,0.000411,14]
[314457615,1708367448377,-2079.901838,0.000411,14]
[314457617,1708367448386,-332.589934,0.000411,14]
[314457619,1708367448396,-2079.901838,0.000411,14]
[314457621,1708367448405,-308.20164,0.000411,14]
[314457624,1708367448415,-332.589934,0.000411,14]
[314457626,1708367448424,-308.20164,0.000411,14]
[314457628,1708367448434,-151.0,0.000411,14]
[314457630,1708367448443,-170.239347,0.000411,14]
[314457632,1708367448452,-170.239347,0.000411,14]
[314457633,1708367448462,-151.0,0.000411,14]
[314457636,1708367448471,-151.0,0.000411,14]
[314457653,1708367448618,-151.0,0.000411,14]
[314457656,1708367448644,-2551.35,0.000411,2]
[314457658,1708367448656,-2551.35,0.000411,2]
[314457660,1708367448667,-2551.35,0.000411,2]
[314457662,1708367448677,-2551.35,0.000411,2]
[314457664,1708367448687,-2551.35,0.000411,2]
[314457666,1708367448697,-2551.35,0.000411,2]
[314457668,1708367448708,-2551.35,0.000411,2]
[314457670,1708367448718,-2551.35,0.000411,2]
[314457672,1708367448728,-2551.35,0.000411,2]
[314457674,1708367448739,-2551.35,0.000411,2]
[314457676,1708367448749,-895.549516,0.000411,14]
[314457678,1708367448759,-1881.758142,0.000411,14]
[314457680,1708367448769,-2000.0,0.00041119,2]
[314457682,1708367448778,-200.0,0.00041119,2]
[314457684,1708367448787,-2316.86731913,0.00041123,15]
[314457686,1708367448797,-1000.0,0.000412,15]
[314457688,1708367448806,-1039.57,0.000412,2]
[314457690,1708367448815,-1138.0,0.00041219,2]
[314457692,1708367448824,-150.0,0.00041219,2]
[314457694,1708367448834,-337.0,0.00041219,2]
[314457696,1708367448843,-321.0,0.00041219,2]
[314457698,1708367448853,-2887.0,0.00041219,2]
[314457700,1708367448863,-308.434,0.00041219,2]
[314457702,1708367448872,-454.0,0.00041219,2]
[314457704,1708367448882,-4732.822,0.00041219,2]
[314457706,1708367448891,-2924.0,0.00041219,2]
[314457708,1708367448900,-8171.0,0.00041219,2]
[314457710,1708367448909,-4102.0,0.00041219,2]
[314457712,1708367448919,-1867.0,0.00041219,2]
[314457714,1708367448928,-2691.0,0.00041219,2]
[314457716,1708367448938,-3117.864,0.00041219,2]
[314457718,1708367448947,-2292.0,0.00041219,2]
[314457721,1708367448957,-19865.0,0.00041219,2]
[314457723,1708367448968,-164.177,0.00041219,2]
[314457725,1708367448977,-842.0,0.00041219,2]
[314457727,1708367448988,-598.0,0.00041219,2]
[314457728,1708367448997,-1231.0,0.00041219,2]
[314457730,1708367449007,-1951.0,0.00041219,2]
[314457733,1708367449017,-274.794,0.00041219,2]
[314457734,1708367449026,-1255.0,0.00041219,2]
[314457737,1708367449035,-591.1960522,0.00041233,3]
[314457739,1708367449045,-182.24,0.00041264,2]
[314457741,1708367449054,-150.0,0.00041384,2]
[314457743,1708367449064,-328.01,0.00041459,2]
[314457745,1708367449074,-2000.0,0.00041531,2]
[314457747,1708367449083,-200.0,0.00041531,2]
[314457749,1708367449092,-959.74182477,0.00041714,10]
[314457751,1708367449102,-2316.86731913,0.00041768,16]
[314457753,1708367449111,-160.4,0.00041799,2]
[314457755,1708367449120,-151.0,0.00041912,7]
[314457757,1708367449129,-203.0,0.0004192,30]
[314457759,1708367449139,-150.5,0.0004193,30]
[314457761,1708367449147,-150.5,0.0004194,30]
[314457763,1708367449156,-591.22510787,0.00041948,5]
[314457765,1708367449166,-150.5,0.0004195,120]
[314457767,1708367449174,-150.5,0.0004195,120]
[314457769,1708367449183,-218.0,0.0004195,3]
[314457771,1708367449192,-150.5,0.0004196,120]
[314457773,1708367449201,-150.5,0.0004196,120]
[314457774,1708367449211,-150.5,0.0004196,3]
[314457776,1708367449220,-150.5,0.0004197,120]
[314457779,1708367449230,-211.05,0.0004197,120]
[314457781,1708367449239,-241.24,0.0004197,120]
[314457783,1708367449252,-293.41,0.0004197,120]
[314457785,1708367449262,-150.5,0.0004197,120]
[314457787,1708367449271,-150.5,0.0004197,3]
[314457789,1708367449280,-2289.97645909,0.0004198,2]
[314457791,1708367449289,-200.0,0.00041987,21]
[314457793,1708367449298,-200.0,0.00041987,31]
[314457795,1708367449307,-1137.4579434,0.00042,30]
[314457797,1708367449317,-200.0,0.00042,2]
[314457799,1708367449326,-200.0,0.00042001,7]
[314457801,1708367449335,-150.0,0.00042064,60]
[314457803,1708367449344,-390.45,0.00042092,15]
[314457805,1708367449354,-156.0,0.0004215,30]
[314457807,1708367449363,-69526.28,0.000422,7]
[314457809,1708367449372,-1321.46,0.000422,7]
[314457811,1708367449381,-396.0,0.00042288,90]
[314457813,1708367449390,-591.1960522,0.00042344,4]
[314457815,1708367449399,-150.0,0.00042394,2]
[314457817,1708367449408,-20886.16,0.000424,7]
[314457819,1708367449417,-2316.86731913,0.00042412,16]
[314457821,1708367449427,-500.0,0.00042466,7]
[314457823,1708367449436,-1608.1189807,0.000425,60]
[314457825,1708367449446,-205.0,0.000425,21]
[314457827,1708367449455,-151.0,0.00042767,4]
[314457829,1708367449464,-48319.53,0.000428,7]
[314457831,1708367449473,-151.0,0.000428,14]
[314457833,1708367449483,-151.0,0.000428,14]
[314457835,1708367449492,-151.0,0.000428,14]
[314457837,1708367449501,-224.694903,0.000428,14]
[314457839,1708367449510,-224.694903,0.000428,14]
[314457841,1708367449519,-476.791133,0.000428,14]
[314457843,1708367449528,-476.791133,0.000428,14]
[314457845,1708367449537,-232.126709,0.000428,14]
[314457847,1708367449547,-232.126709,0.000428,14]
[314457849,1708367449555,-151.0,0.000428,14]
[314457851,1708367449565,-257.790048,0.000428,14]
[314457853,1708367449575,-167.941296,0.000428,14]
[314457855,1708367449583,-167.941296,0.000428,14]
[314457857,1708367449593,-151.0,0.000428,14]
[314457859,1708367449602,-303.481413,0.000428,14]
[314457862,1708367449612,-303.481413,0.000428,14]
[314457864,1708367449625,-586.646416,0.000428,14]
[314457866,1708367449635,-586.646416,0.000428,14]
[314457867,1708367449644,-357.651493,0.000428,14]
[314457869,1708367449653,-301.483431,0.000428,14]
[314457872,1708367449665,-357.651493,0.000428,14]
[314457874,1708367449674,-301.483431,0.000428,14]
[314457876,1708367449684,-197.637474,0.000428,14]
[314457878,1708367449693,-151.0,0.000428,14]
[314457880,1708367449705,-197.637474,0.000428,14]
[314457882,1708367449714,-151.0,0.000428,14]
[314457884,1708367449723,-151.0,0.000428,14]
[314457886,1708367449733,-277.228251,0.000428,14]
[314457888,1708367449742,-995.33519,0.000428,14]
[314457890,1708367449751,-995.33519,0.000428,14]
[314457892,1708367449760,-222.297429,0.000428,14]
[314457894,1708367449770,-151.0,0.000428,14]
[314457896,1708367449779,-151.0,0.000428,14]
[314457898,1708367449789,-414.585662,0.000428,14]
[314457900,1708367449798,-414.585662,0.000428,14]
[314457902,1708367449808,-278.261934,0.000428,14]
[314457904,1708367449817,-2079.901838,0.000428,14]
[314457905,1708367449827,-332.589934,0.000428,14]
[314457908,1708367449836,-2079.901838,0.000428,14]
[314457909,1708367449845,-308.20164,0.000428,14]
[314457912,1708367449855,-332.589934,0.000428,14]
[314457913,1708367449864,-308.20164,0.000428,14]
[314457915,1708367449873,-151.0,0.000428,14]
[314457918,1708367449882,-170.239347,0.000428,14]
[314457919,1708367449892,-170.239347,0.000428,14]
[314457922,1708367449902,-151.0,0.000428,14]
[314457924,1708367449911,-151.0,0.000428,14]
[314457926,1708367449920,-151.0,0.000428,14]
[314457927,1708367449929,-500.0,0.00042894,7]
[314457929,1708367449939,-182.24,0.00042908,2]
[314457932,1708367449948,-959.74182477,0.00042986,11]
[314457933,1708367449958,-200.0,0.00042987,22]
[314457935,1708367449968,-1200.43445229,0.00043,2]
[314457937,1708367449977,-153.05281996,0.00043011,18]
[314457939,1708367449987,-642.23180533,0.00043051,2]
[314457941,1708367449996,-2316.86731913,0.00043057,17]
[314457944,1708367450007,-150.0,0.00043064,60]
[314457946,1708367450017,-150.0,0.00043064,60]
[314457948,1708367450026,-58000.0,0.0004308,5]
[314457950,1708367450036,-151.0,0.0004308,14]
[314457951,1708367450046,-27486.69062227,0.0004308,5]
[314457954,1708367450056,-895.549516,0.0004308,14]
[314457955,1708367450066,-1881.758142,0.0004308,14]
[314457957,1708367450076,-69526.28,0.000432,7]
[314457959,1708367450085,-1321.46,0.000432,7]
[314457962,1708367450095,-150.0,0.000432,30]
[314457964,1708367450104,-150.0,0.000432,30]
[314457966,1708367450114,-150.0,0.000432,30]
[314457968,1708367450123,-150.0,0.000432,30]
[314457970,1708367450132,-800.0,0.00043246,10]
[314457972,1708367450141,-500.0,0.00043322,7]
[314457974,1708367450150,-1000.0,0.00043333,2]
[314457976,1708367450159,-20886.16,0.000434,7]
[314457978,1708367450169,-152.97,0.000434,4]
[314457979,1708367450182,-152.97,0.000434,4]
[314457982,1708367450191,-152.97,0.000434,4]
[314457983,1708367450200,-152.97,0.000434,4]
[314457985,1708367450210,-152.97,0.000434,4]
[314457987,1708367450219,-152.97,0.000434,4]
[314457989,1708367450229,-152.97,0.000434,4]
[314457992,1708367450239,-152.97,0.000434,4]
[314457994,1708367450248,-1692.44,0.000434,4]
[314457996,1708367450258,-1692.44,0.000434,4]
[314457998,1708367450267,-1692.44,0.000434,4]
[314458000,1708367450276,-1692.44,0.000434,4]
[314458002,1708367450285,-1692.44,0.000434,4]
[314458004,1708367450295,-1692.44,0.000434,4]
[314458006,1708367450305,-1692.44,0.000434,4]
[314458008,1708367450314,-1692.44,0.000434,4]
[314458010,1708367450323,-1692.44,0.000434,4]
[314458012,1708367450333,-1692.44,0.000434,4]
[314458014,1708367450342,-1692.44,0.000434,4]
[314458016,1708367450351,-1692.44,0.000434,4]
[314458018,1708367450360,-1692.44,0.000434,4]
[314458020,1708367450370,-1692.44,0.000434,4]
[314458022,1708367450379,-1692.44,0.000434,4]
[314458024,1708367450388,-1692.44,0.000434,4]
[314458026,1708367450397,-1692.44,0.000434,4]
[314458027,1708367450407,-1692.44,0.000434,4]
[314458030,1708367450416,-1692.44,0.000434,4]
[314458032,1708367450426,-1692.44,0.000434,4]
[314458034,1708367450435,-150.0,0.00043403,2]
[314458036,1708367450445,-4142.52829988,0.0004343,2]
[314458038,1708367450454,-591.1960522,0.00043456,5]
[314458040,1708367450465,-591.22510787,0.00043527,5]
[314458042,1708367450474,-5000.0,0.00043532,2]
[314458044,1708367450485,-151.0,0.0004364,2]
[314458046,1708367450494,-2316.86731913,0.00043702,18]
[314458048,1708367450504,-328.01,0.00043723,2]
[314458050,1708367450514,-500.0,0.0004375,7]
[314458052,1708367450523,-5000.0,0.000438,120]
[314458054,1708367450665,-4113.0,0.000438,30]
[314458055,1708367450676,-784.0,0.000438,30]
[314458056,1708367450686,-1000.0,0.000438,2]
[314458058,1708367450696,-363.0,0.000438,2]
[314458060,1708367450707,-477.0,0.000438,2]
[314458062,1708367450717,-300.0,0.000438,2]
[314458064,1708367450726,-1659.5661555,0.000438,2]
[314458066,1708367450736,-800.0,0.00043835,2]
[314458068,1708367450745,-320.45143914,0.0004389,2]
[314458070,1708367450755,-500.0,0.0004389,30]
[314458072,1708367450764,-1039.57,0.0004394,2]
[314458075,1708367450774,-150.0,0.00043949,30]
[314458077,1708367450783,-293.0,0.00043983,4]
[314458079,1708367450794,-293.0,0.00043983,5]
[314458081,1708367450803,-200.0,0.00043987,23]
[314458082,1708367450813,-200.0,0.00043987,33]
[314458085,1708367450822,-48319.53,0.00044,7]
[314458086,1708367450831,-151.0,0.00044,14]
[314458088,1708367450841,-188.513452,0.00044,14]
[314458090,1708367450851,-151.0,0.00044,14]
[314458092,1708367450860,-224.694903,0.00044,14]
[314458094,1708367450870,-224.694903,0.00044,14]
[314458096,1708367450880,-202.0,0.00044,90]
[314458098,1708367450889,-476.791133,0.00044,14]
[314458100,1708367450899,-476.791133,0.00044,14]
[314458102,1708367450908,-232.126709,0.00044,14]
[314458104,1708367450917,-232.126709,0.00044,14]
[314458106,1708367450927,-151.0,0.00044,14]
[314458108,1708367450936,-167.941296,0.00044,14]
[314458110,1708367450946,-167.941296,0.00044,14]
[314458112,1708367450955,-192.461792,0.00044,14]
[314458114,1708367450967,-303.481413,0.00044,14]
[314458116,1708367450977,-303.481413,0.00044,14]
[314458118,1708367450987,-586.646416,0.00044,14]
[314458120,1708367450997,-586.646416,0.00044,14]
[314458122,1708367451006,-357.651493,0.00044,14]
[314458124,1708367451015,-301.483431,0.00044,14]
[314458126,1708367451025,-357.651493,0.00044,14]
[314458128,1708367451034,-301.483431,0.00044,14]
[314458130,1708367451043,-197.637474,0.00044,14]
[314458132,1708367451053,-151.0,0.00044,14]
[314458134,1708367451062,-197.637474,0.00044,14]
[314458136,1708367451071,-151.0,0.00044,14]
[314458138,1708367451081,-151.0,0.00044,14]
[314458140,1708367451090,-995.33519,0.00044,14]
[314458142,1708367451100,-995.33519,0.00044,14]
[314458144,1708367451109,-151.0,0.00044,14]
[314458146,1708367451119,-151.0,0.00044,14]
[314458148,1708367451128,-414.585662,0.00044,14]
[314458150,1708367451137,-414.585662,0.00044,14]
[314458152,1708367451146,-2079.901838,0.00044,14]
[314458154,1708367451155,-332.589934,0.00044,14]
[314458156,1708367451165,-2079.901838,0.00044,14]
[314458158,1708367451174,-308.20164,0.00044,14]
[314458160,1708367451184,-332.589934,0.00044,14]
[314458162,1708367451194,-308.20164,0.00044,14]
[314458164,1708367451203,-170.239347,0.00044,14]
[314458166,1708367451212,-170.239347,0.00044,14]
[314458168,1708367451221,-151.0,0.00044,14]
[314458170,1708367451231,-151.0,0.00044,14]
[314458172,1708367451242,-151.0,0.00044,14]
[314458174,1708367451252,-334.19580764,0.000441,2]
[314458176,1708367451265,-500.0,0.00044178,7]
[314458178,1708367451275,-1359.82,0.00044219,2]
[314458180,1708367451285,-932.722,0.00044219,2]
[314458182,1708367451294,-1948.0,0.00044219,2]
[314458184,1708367451305,-959.74182477,0.00044257,11]
[314458186,1708367451316,-69526.28,0.000443,7]
[314458188,1708367451325,-1321.46,0.000443,7]
[314458190,1708367451334,-151.0,0.000443,14]
[314458192,1708367451344,-10036.61502214,0.000443,2]
[314458194,1708367451353,-895.549516,0.000443,14]
[314458196,1708367451363,-1881.758142,0.000443,14]
[314458198,1708367451372,-2316.86731913,0.00044347,19]
[314458200,1708367451382,-1000.0,0.000444,7]
[314458202,1708367451392,-150.0,0.00044412,2]
[314458205,1708367451408,-200.0,0.000445,30]
[314458207,1708367451424,-1000.0,0.000445,7]
[314458210,1708367451434,-182.24,0.00044552,2]
[314458211,1708367451444,-591.1960522,0.00044567,6]
[314458214,1708367451454,-500.0,0.00044606,7]
[314458216,1708367451465,-800.0,0.00044657,2]
[314458218,1708367451475,-5056.41633167,0.000447,15]
[314458220,1708367451486,-1000.0,0.00044746,2]
[314458222,1708367451496,-20886.16,0.000448,7]
[314458224,1708367451506,-950.32169,0.0004483,2]
[314458226,1708367451516,-211.0,0.0004498,30]
[314458228,1708367451526,-153.05281996,0.00044984,25]
[314458230,1708367451535,-200.0,0.00044987,24]
[314458232,1708367451545,-2316.86731913,0.00044992,20]
[314458234,1708367451555,-405.12230858,0.00045,4]
[314458236,1708367451565,-21086.93448916,0.00045,30]
[314458238,1708367451575,-200.0,0.00045,19]
[314458240,1708367451585,-500.0,0.00045034,7]
[314458243,1708367451605,-1000.0,0.000451,7]
[314458246,1708367451640,-591.22510787,0.00045106,5]
[314458250,1708367451662,-389.0,0.00045107,90]
[314458253,1708367451686,-1000.0,0.00045139,30]
[314458256,1708367451708,-163.432889,0.00045144,30]
[314458259,1708367451728,-152.266666,0.00045144,30]
[314458262,1708367451750,-3604.16,0.00045277,5]
[314458265,1708367451771,-150.0,0.00045422,2]
[314458268,1708367451793,-500.0,0.00045462,7]
[314458272,1708367451811,-800.0,0.00045479,2]
[314458275,1708367451834,-959.74182477,0.00045529,12]
[314458278,1708367451850,-152.97,0.000456,5]
[314458281,1708367451868,-152.97,0.000456,5]
[314458283,1708367451882,-152.97,0.000456,5]
[314458286,1708367451899,-152.97,0.000456,5]
[314458288,1708367451912,-152.97,0.000456,5]
[314458291,1708367451928,-152.97,0.000456,5]
[314458294,1708367451945,-152.97,0.000456,5]
[314458297,1708367451963,-152.97,0.000456,5]
[314458300,1708367451980,-1692.44,0.000456,5]
[314458302,1708367451997,-1692.44,0.000456,5]
[314458305,1708367452014,-1692.44,0.000456,5]
[314458308,1708367452031,-1692.44,0.000456,5]
[314458311,1708367452047,-1692.44,0.000456,5]
[314458313,1708367452061,-1692.44,0.000456,5]
[314458316,1708367452078,-1692.44,0.000456,5]
[314458319,1708367452093,-1692.44,0.000456,5]
[314458321,1708367452109,-1692.44,0.000456,5]
[314458324,1708367452124,-1692.44,0.000456,5]
[314458327,1708367452144,-1692.44,0.000456,5]
[314458330,1708367452159,-1692.44,0.000456,5]
[314458333,1708367452175,-1692.44,0.000456,5]
[314458335,1708367452190,-1692.44,0.000456,5]
[314458339,1708367452216,-1692.44,0.000456,5]
[314458342,1708367452231,-1692.44,0.000456,5]
[314458344,1708367452246,-1692.44,0.000456,5]
[314458347,1708367452261,-1692.44,0.000456,5]
[314458350,1708367452276,-1692.44,0.000456,5]
[314458352,1708367452290,-1692.44,0.000456,5]
[314458355,1708367452304,-2316.86731913,0.00045637,21]
[314458357,1708367452319,-591.1960522,0.00045678,7]
[314458360,1708367452335,-48319.53,0.000457,7]
[314458363,1708367452350,-390.45,0.00045828,15]
[314458365,1708367452365,-1114.39,0.00045869,15]
[314458368,1708367452379,-1114.39,0.00045869,15]
[314458371,1708367452395,-1114.39,0.00045869,15]
[314458373,1708367452409,-1114.39,0.00045869,15]
[314458376,1708367452424,-500.0,0.0004589,7]
[314458379,1708367452440,-255.0,0.000459,2]
[314458381,1708367452455,-328.01,0.00045987,2]
[314458384,1708367452469,-200.0,0.00045987,71]
[314458386,1708367452484,-211.0,0.0004599,30]
[314458389,1708367452500,-200.0,0.00046,21]
[314458391,1708367452515,-156.89813651,0.00046073,30]
[314458394,1708367452530,-153.28144718,0.00046091,30]
[314458397,1708367452546,-154.13603137,0.00046109,2]
[314458399,1708367452561,-1114.39,0.00046142,15]
[314458402,1708367452576,-1114.39,0.00046142,15]
[314458404,1708367452591,-257.37920968,0.00046219,30]
[314458407,1708367452606,-257.37920968,0.00046254,30]
[314458409,1708367452623,-164.09086482,0.00046266,30]
[314458412,1708367452638,-156.89813651,0.00046277,30]
[314458415,1708367452652,-151.0,0.00046281,14]
[314458417,1708367452669,-995.33519,0.00046281,14]
[314458420,1708367452684,-995.335198,0.00046281,14]
[314458422,1708367452701,-166.955727,0.00046281,14]
[314458425,1708367452717,-151.0,0.00046281,14]
[314458427,1708367452731,-414.585662,0.00046281,14]
[314458430,1708367452747,-414.585661,0.00046281,14]
[314458433,1708367452763,-2079.901838,0.00046281,14]
[314458435,1708367452776,-332.589934,0.00046281,14]
[314458438,1708367452792,-2079.901839,0.00046281,14]
[314458440,1708367452806,-308.20164,0.00046281,14]
[314458443,1708367452822,-332.589942,0.00046281,14]
[314458445,1708367452837,-308.201644,0.00046281,14]
[314458448,1708367452851,-170.239347,0.00046281,14]
[314458451,1708367452866,-170.239354,0.00046281,14]
[314458453,1708367452881,-151.0,0.00046281,14]
[314458456,1708367452896,-2316.86731913,0.00046281,21]
[314458459,1708367452911,-800.0,0.00046301,2]
[314458461,1708367452926,-157.33452709,0.00046317,30]
[314458464,1708367452940,-500.0,0.00046318,7]
[314458466,1708367452955,-153.28144718,0.0004634,30]
[314458469,1708367452970,-226.95474716,0.00046366,30]
[314458471,1708367452985,-257.37920968,0.00046389,30]
[314458474,1708367453000,-151.0,0.00046392,14]
[314458476,1708367453014,-167.941296,0.00046392,14]
[314458477,1708367453030,-167.941298,0.00046392,14]
[314458478,1708367453044,-154.0583357,0.0004641,30]
[314458499,1708367453227,-303.481413,0.00046415,14]
[314458501,1708367453237,-303.481414,0.00046415,14]
[314458503,1708367453247,-586.646416,0.00046415,14]
[314458505,1708367453257,-586.64642,0.00046415,14]
[314458507,1708367453266,-357.651493,0.00046415,14]
[314458509,1708367453275,-301.483431,0.00046415,14]
[314458511,1708367453284,-357.651495,0.00046415,14]
[314458513,1708367453293,-301.483437,0.00046415,14]
[314458515,1708367453303,-197.637474,0.00046415,14]
[314458517,1708367453312,-151.0,0.00046415,14]
[314458519,1708367453322,-197.637464,0.00046415,14]
[314458521,1708367453332,-151.0,0.00046415,14]
[314458523,1708367453341,-1114.39,0.00046415,15]
[314458525,1708367453351,-1114.39,0.00046415,15]
[314458527,1708367453361,-150.0,0.00046431,2]
[314458530,1708367453370,-3000.0,0.000465,67]
[314458531,1708367453380,-160.0,0.000465,104]
[314458534,1708367453390,-694.985703,0.000465,21]
[314458535,1708367453399,-300.0,0.000465,7]
[314458537,1708367453409,-303.84,0.000465,2]
[314458539,1708367453419,-168.15336397,0.00046509,6]
[314458542,1708367453429,-150.0,0.00046509,6]
[314458544,1708367453438,-3000.0,0.0004651,67]
[314458545,1708367453447,-151.0,0.0004651,14]
[314458548,1708367453457,-151.0,0.0004651,14]
[314458550,1708367453467,-224.694903,0.0004651,14]
[314458552,1708367453477,-224.694909,0.0004651,14]
[314458554,1708367453486,-476.791133,0.0004651,14]
[314458555,1708367453496,-476.791135,0.0004651,14]
[314458558,1708367453506,-232.126709,0.0004651,14]
[314458560,1708367453515,-232.126711,0.0004651,14]
[314458562,1708367453525,-5483.874982,0.0004652,67]
[314458564,1708367453534,-20000.0,0.00046528,2]
[314458566,1708367453544,-16773.52891501,0.00046534,6]
[314458567,1708367453553,-165.78496256,0.00046549,30]
[314458570,1708367453563,-257.37920968,0.00046553,30]
[314458571,1708367453573,-3319.32799788,0.00046574,2]
[314458574,1708367453583,-300.02,0.00046574,2]
[314458576,1708367453593,-168.15336397,0.00046574,6]
[314458578,1708367453602,-150.0,0.00046574,6]
[314458580,1708367453612,-891.1717427,0.00046574,2]
[314458582,1708367453623,-152.0,0.00046575,4]
[314458584,1708367453634,-269.43917983,0.00046575,18]
[314458586,1708367453643,-500.0,0.00046575,18]
[314458587,1708367453652,-500.0,0.00046575,18]
[314458590,1708367453662,-382.42018135,0.00046575,18]
[314458592,1708367453671,-500.0,0.00046575,18]
[314458593,1708367453680,-503.05338856,0.00046575,18]
[314458595,1708367453689,-500.0,0.00046575,18]
[314458598,1708367453699,-500.0,0.00046575,18]
[314458600,1708367453710,-500.0,0.00046575,18]
[314458602,1708367453720,-500.0,0.00046575,18]
[314458604,1708367453730,-310.48537464,0.00046575,18]
[314458606,1708367453740,-500.0,0.00046575,18]
[314458608,1708367453750,-360.78685134,0.00046575,18]
[314458610,1708367453759,-500.0,0.00046575,18]
[314458611,1708367453769,-517.83361149,0.00046575,18]
[314458614,1708367453779,-500.0,0.00046575,18]
[314458616,1708367453788,-643.12263167,0.00046575,18]
[314458618,1708367453798,-504.07069447,0.00046575,18]
[314458619,1708367453808,-500.0,0.00046575,18]
[314458621,1708367453817,-500.0,0.00046575,18]
[314458623,1708367453826,-500.0,0.00046575,18]
[314458625,1708367453835,-500.0,0.00046575,18]
[314458627,1708367453845,-500.0,0.00046575,18]
[314458630,1708367453854,-500.0,0.00046575,18]
[314458632,1708367453863,-500.0,0.00046575,18]
[314458634,1708367453872,-524.54644344,0.00046575,18]
[314458636,1708367453881,-500.0,0.00046575,18]
[314458637,1708367453890,-502.01075234,0.00046575,18]
[314458640,1708367453900,-500.0,0.00046575,30]
[314458642,1708367453909,-500.0,0.00046575,30]
[314458644,1708367453918,-199.23843572,0.00046575,30]
[314458646,1708367453928,-500.0,0.00046575,30]
[314458648,1708367453936,-500.0,0.00046575,30]
[314458649,1708367453946,-500.0,0.00046575,30]
[314458651,1708367453956,-500.0,0.00046575,30]
[314458654,1708367453966,-502.86,0.00046575,30]